bitfinex/quotes_ETHUSD_20240701
["timestamp","ask_amount","ask_price","bid_price","bid_amount"]
[1719795935845,7.32,3451.9,3451.2,0.04289623]
[1719795935846,0.825,3451.6,3451.2,0.04289623]
[1719795936310,0.825,3451.6,3451.1,4.7059]
[1719795936712,3.0,3451.8,3451.1,5.17649]
[1719795936930,3.825,3451.8,3451.2,0.04289623]
[1719795937341,3.825,3451.8,3451.1,4.7059]
[1719795938080,3.0,3451.8,3451.1,4.7059]
[1719795938289,7.32,3451.9,3451.3,5.7664]
[1719795938568,7.32,3451.9,3451.5,4.9414]
[1719795938956,7.32,3451.9,3451.6,0.04260268]
[1719795939153,13.295,3452.2,3451.6,0.04260268]
[1719795939462,3.0,3452.1,3451.6,0.04260268]
[1719795939784,3.0,3452.2,3451.5,5.7664]
[1719795939925,3.0,3452.2,3451.6,5.57628346]
[1719795940127,3.0,3452.2,3451.7,0.04253301]
[1719795941947,3.0,3452.2,3451.8,4.5863]
[1719795942471,3.0,3452.2,3451.9,0.04239368]
[1719795946572,7.32,3452.3,3452.1,5.4344]
[1719795947033,7.32,3452.3,3452.2,4.65155325]
[1719795947661,7.32,3453.4,3452.2,4.70948207]
[1719795947975,5.31402584,3453.9,3452.6,4.9192]
[1719795948183,0.825,3453.5,3452.6,4.9192]
[1719795948382,0.825,3453.5,3452.7,0.04180506]
[1719795949348,0.825,3453.4,3452.7,0.04180506]
[1719795950387,0.825,3453.4,3452.7,0.62040557]
[1719795950927,3.0,3453.8,3452.7,0.62040557]
[1719795951135,0.825,3453.4,3452.7,0.62040557]
[1719795954882,0.825,3453.0,3452.7,0.04180506]
[1719795955247,0.825,3453.2,3452.7,0.04180506]
[1719795957395,3.0,3453.4,3452.7,0.04180506]
[1719795957396,0.825,3452.8,3452.7,0.04180506]
[1719795957890,0.825,3452.8,3452.1,4.8918]
[1719795958119,0.825,3452.8,3452.7,0.04170382]
[1719795958328,0.825,3452.8,3452.1,4.8918]
[1719795958629,0.825,3453.0,3452.1,4.8918]
[1719795958826,0.825,3453.0,3452.2,0.04205237]
[1719795958972,0.825,3453.0,3452.2,0.61793761]
[1719795960683,3.0,3453.4,3452.2,0.04205237]
[1719795960889,0.825,3452.6,3452.2,0.04205237]
[1719795961689,0.825,3452.8,3452.2,0.04205237]
[1719795962492,3.0,3452.9,3452.3,4.8334]
[1719795962702,0.9457934,3453.1,3452.4,0.57583805]
[1719795962900,0.9457934,3453.1,3452.5,4.8334]
[1719795963419,0.9457934,3453.1,3452.6,0.041785]
[1719795965413,0.825,3452.9,3452.6,0.041785]
[1719795965605,0.1207934,3453.1,3452.6,0.041785]
[1719795965787,0.825,3452.8,3452.6,0.041785]
[1719795965993,0.9457934,3453.1,3452.6,0.041785]
[1719795966531,0.1207934,3453.1,3452.6,0.5293035]
[1719795966827,0.1207934,3453.1,3452.7,4.8564]
[1719795967193,0.1207934,3453.1,3452.8,0.04164358]
[1719795967742,0.1207934,3453.1,3452.7,4.8564]
[1719795967901,0.1207934,3453.1,3452.9,0.04157396]
[1719795968099,0.1207934,3453.1,3452.8,0.04164358]
[1719795968300,0.1207934,3453.1,3453.0,0.04150434]
[1719795968491,0.1207934,3453.1,3452.9,0.04157396]
[1719795968788,0.1207934,3453.1,3453.0,0.04150434]
[1719795969182,0.1207934,3453.1,3452.7,4.8564]
[1719795969385,0.1207934,3453.1,3453.0,0.04150434]
[1719795969586,0.1207934,3453.1,3452.7,5.47329185]
[1719795969785,0.1207934,3453.1,3453.0,0.04150434]
[1719795970015,0.1207934,3453.1,3452.7,4.8564]
[1719795970241,0.1207934,3453.1,3453.0,0.04150434]
[1719795970395,0.1207934,3453.1,3452.7,4.8564]
[1719795970596,0.1207934,3453.1,3453.0,0.04150434]
[1719795970797,0.1207934,3453.1,3452.7,5.42454]
[1719795971000,0.1207934,3453.1,3453.0,0.04150434]
[1719795971312,0.1207934,3453.1,3452.8,4.65901676]
[1719795971523,0.1207934,3453.1,3453.0,0.04148483]
[1719795971705,0.1207934,3453.1,3452.9,0.04155409]
[1719795971896,0.1207934,3453.1,3453.0,0.56835556]
[1719795972527,0.1207934,3453.1,3453.0,0.04148447]
[1719795972891,0.1207934,3453.1,3452.8,4.65901676]
[1719795973090,0.1207934,3453.1,3453.0,0.04148447]
[1719795973290,0.1207934,3453.1,3452.9,0.04155409]
[1719795973538,0.1207934,3453.1,3453.0,0.04148447]
[1719795973892,0.1207934,3453.1,3452.8,4.65901676]
[1719795974088,0.1207934,3453.1,3453.0,0.04148158]
[1719795974436,4.8201,3454.3,3453.0,5.8022]
[1719795974754,0.06804637,3653.3,3453.1,18.81023301]
[1719795974755,6.53510629,3459.6,3453.1,18.81023301]
[1719795974896,0.1207934,3460.1,3459.5,0.825]
[1719795975097,1.159961,3459.9,3459.8,9.59168]
[1719795975402,1.159961,3459.9,3459.6,0.55]
[1719795975403,1.46550214,3462.9,3461.2,0.3195743]
[1719795975641,1.46550214,3462.9,3460.3,3.061]
[1719795975642,2.8987553,3462.9,3461.5,0.1312091]
[1719795975961,2.8987553,3462.9,3461.6,2.48957691]
[1719795975962,1.42549188,3462.7,3461.6,2.48957691]
[1719795976140,1.42549188,3462.7,3461.4,3.43895]
[1719795976325,1.42549188,3462.7,3461.6,0.03542933]
[1719795976524,1.42549188,3462.7,3461.3,0.57694728]
[1719795976868,1.25668451,3463.4,3461.1,2.89]
[1719795976869,1.47206882,3464.1,3462.6,0.825]
[1719795977168,1.47206882,3464.1,3461.8,2.77]
[1719795977169,1.44833216,3464.1,3461.4,0.63560673]
[1719795977337,1.44833216,3464.1,3461.2,3.55]
[1719795977338,1.44833216,3464.1,3462.0,2.88843]
[1719795977526,1.44833216,3464.1,3459.9,4.014168]
[1719795977527,1.45598786,3463.9,3459.9,6.904408]
[1719795977759,0.1507337,3464.1,3458.7,1.37747178]
[1719795977760,1.49863842,3462.9,3460.1,0.9904408]
[1719795978073,1.47180128,3462.0,3460.1,0.03236755]
[1719795978377,3.00453685,3463.8,3460.1,0.03236755]
[1719795978378,4.03422719,3461.0,3460.1,0.03236755]
[1719795978576,4.03422719,3461.0,3460.0,2.89011]
[1719795978577,2.2183952,3461.7,3458.9,0.59645026]
[1719795978735,4.08605921,3460.5,3459.0,1.00583606]
[1719795978932,2.623,3460.0,3458.7,0.59645026]
[1719795979275,2.623,3460.0,3458.5,2.40362331]
[1719795979276,2.623,3460.0,3459.1,0.03304324]
[1719795979468,2.623,3460.0,3458.3,0.89460653]
[1719795979469,2.94068714,3459.9,3458.1,0.59645026]
[1719795979649,3.173,3459.9,3459.2,0.03302554]
[1719795979858,2.623,3459.4,3459.2,0.03302554]
[1719795980074,2.623,3459.4,3458.2,4.8471]
[1719795980240,0.75,3459.5,3458.3,0.48471]
[1719795980241,2.623,3458.5,3458.3,0.48471]
[1719795980576,2.623,3458.5,3456.8,5.44355026]
[1719795980577,8.51455,3458.4,3456.8,5.44355026]
[1719795980741,2.623,3457.0,3456.9,1.00618938]
[1719795980941,3.55,3458.4,3456.8,4.7276]
[1719795981180,2.623,3457.5,3456.9,0.03350277]
[1719795981359,0.55,3458.4,3457.0,0.47611028]
[1719795981687,2.623,3459.1,3457.4,5.79228]
[1719795981837,1.49081696,3461.3,3457.5,2.78]
[1719795981838,2.88919,3461.2,3457.5,2.78]
[1719795982043,0.75,3462.7,3457.5,2.78]
[1719795982044,3.63847,3462.1,3459.2,2.9]
[1719795982262,1.49081696,3461.3,3459.3,0.579087]
[1719795982464,1.46305921,3460.5,3459.3,0.579087]
[1719795982676,1.45646547,3461.2,3459.3,0.579087]
[1719795982871,2.88744,3463.3,3459.4,0.37967626]
[1719795982872,1.43296613,3460.9,3459.4,0.37967626]
[1719795983108,1.40328077,3460.8,3459.4,0.37967626]
[1719795983661,2.89021,3460.0,3459.4,0.37967626]
[1719795983856,2.758,3459.9,3458.7,2.78]
[1719795984091,2.758,3459.9,3458.6,4.8765]
[1719795984092,2.89035,3459.8,3459.5,0.03169821]
[1719795984293,2.758,3459.3,3458.6,4.8765]
[1719795984499,3.0,3459.2,3458.7,0.48765]
[1719795984654,3.0,3459.9,3458.7,0.51990317]
[1719795984858,2.758,3460.1,3458.7,0.51990317]
[1719795985101,3.0,3460.0,3458.7,0.51990317]
[1719795985301,3.0,3460.0,3458.8,3.43075032]
[1719795985604,2.88996,3460.3,3458.9,0.0321144]
[1719795985762,2.758,3459.5,3458.9,0.0321144]
[1719795985966,3.0,3459.4,3458.9,0.0321144]
[1719795986367,3.0,3459.4,3458.8,0.53964032]
[1719795986575,3.0,3459.4,3458.9,0.54161403]
[1719795986901,3.0,3459.4,3458.6,4.8765]
[1719795987079,2.758,3458.7,3458.6,4.8765]
[1719795987261,5.758,3458.7,3458.6,4.8765]
[1719795987670,2.758,3459.4,3458.6,7.76782]
[1719795987868,2.758,3459.4,3458.7,0.776782]
[1719795988414,4.347,3460.6,3458.9,2.5161]
[1719795988738,2.758,3459.7,3458.9,2.5161]
[1719795988889,2.758,3459.7,3459.0,0.03113354]
[1719795989221,2.758,3459.1,3459.0,0.03113354]
[1719795989370,2.758,3459.1,3459.0,0.36353509]
[1719795990201,0.9267,3459.6,3459.2,0.75]
[1719795990522,0.9267,3459.6,3459.1,0.00867906]
[1719795990734,0.9267,3459.6,3459.3,0.78092544]
[1719795990869,0.9267,3459.6,3459.3,0.75]
[1719795991076,5.77862021,3460.6,3459.5,0.75]
[1719795991275,2.758,3459.7,3459.5,2.89058]
[1719795991589,2.758,3459.7,3459.6,0.78071737]
[1719795991830,2.758,3459.7,3459.6,4.03834711]
[1719795992038,2.758,3459.7,3459.6,0.39784711]
[1719795992177,2.758,3459.7,3459.6,0.03071737]
[1719795992526,4.3715,3459.7,3459.2,2.9]
[1719795992817,1.3715,3459.7,3459.2,2.9]
[1719795993018,1.3715,3459.7,3459.6,2.8905]
[1719795993222,1.3715,3459.7,3459.6,0.29214254]
[1719795993423,1.3715,3459.7,3459.6,0.32285991]
[1719795993722,7.11460242,3460.5,3459.6,0.32285991]
[1719795993871,2.758,3459.7,3459.6,0.03071737]
[1719795994391,2.758,3459.7,3459.6,0.03068731]
[1719795994591,2.758,3459.7,3459.2,2.9]
[1719795994920,2.758,3459.7,3459.6,0.03068696]
[1719795995377,2.758,3459.7,3459.3,0.29086791]
[1719795995378,0.07478452,3459.7,3459.3,0.29086791]
[1719795995735,0.07478452,3459.7,3459.4,0.03082779]
[1719795995915,0.07478452,3459.7,3459.6,0.75]
[1719795996096,0.07478452,3459.7,3459.6,7.081]
[1719795996280,1.47338603,3461.5,3460.5,0.75]
[1719795996645,1.47338603,3461.5,3460.4,2.88983]
[1719795996646,4.347,3461.6,3460.6,0.02997704]
[1719795996989,2.758,3460.7,3460.4,2.9]
[1719795997180,2.758,3460.7,3460.5,0.29]
[1719795997988,2.88843,3462.1,3460.5,0.29]
[1719795998324,2.758,3460.6,3460.5,0.29]
[1719795998537,4.347,3461.6,3460.5,1.04]
[1719795998852,2.758,3460.6,3460.5,1.04]
[1719795999193,2.758,3460.6,3460.5,0.29]
[1719795999919,2.758,3461.3,3460.9,0.75]
[1719796000293,2.758,3461.3,3461.0,0.55]
[1719796000810,2.758,3461.3,3461.2,3.63917]
[1719796001010,2.758,3461.3,3461.2,2.88917]
[1719796001182,2.758,3461.3,3461.2,3.43917]
[1719796001378,2.758,3461.3,3461.2,7.766189]
[1719796001739,2.758,3462.1,3461.2,1.237849]
[1719796001949,2.758,3461.3,3461.2,1.237849]
[1719796002158,2.758,3461.3,3460.9,0.75]
[1719796002456,2.88732,3463.5,3461.0,0.55]
[1719796002773,4.347,3463.6,3461.0,0.55]
[1719796002774,2.758,3462.7,3461.8,2.88859]
[1719796002925,2.758,3462.7,3461.9,3.43856]
[1719796003251,2.758,3462.7,3462.0,0.75]
[1719796003471,2.758,3462.7,3462.1,0.96885]
[1719796003600,2.758,3462.7,3461.9,0.55]
[1719796003601,2.758,3462.7,3462.0,0.75]
[1719796003809,0.0211608,3464.2,3462.1,3.33]
[1719796003810,2.758,3464.0,3462.1,3.33]
[1719796004002,0.0211608,3464.2,3463.8,2.88699]
[1719796004262,0.0211608,3464.2,3463.3,0.75]
[1719796004471,0.0211608,3464.2,3462.9,2.9]
[1719796004472,2.758,3464.0,3463.2,1.37501619]
[1719796004752,2.758,3464.0,3463.0,0.55]
[1719796004753,2.758,3464.0,3463.3,0.74250162]
[1719796005255,2.758,3464.0,3463.3,0.19250162]
[1719796005433,2.758,3464.0,3463.0,0.55]
[1719796005661,2.758,3464.0,3463.1,0.75]
[1719796005819,0.0211608,3464.2,3463.2,0.55]
[1719796006205,0.0211608,3464.2,3463.1,0.75]
[1719796006206,0.0211608,3464.2,3463.1,6.63754]
[1719796006408,0.0211608,3464.2,3462.9,4.27350568]
[1719796006409,2.88544,3465.7,3463.8,0.75]
[1719796006725,2.88544,3465.7,3464.2,2.9]
[1719796006726,2.758,3465.7,3464.2,2.9]
[1719796007333,2.758,3465.7,3464.3,0.75]
[1719796007541,2.758,3465.7,3464.5,0.75]
[1719796007850,2.758,3465.7,3464.6,0.55]
[1719796008216,2.758,3465.7,3464.5,0.75]
[1719796008377,2.88466,3466.7,3464.9,0.75]
[1719796008585,2.88466,3466.7,3464.8,2.78]
[1719796008586,2.758,3466.5,3465.1,0.75]
[1719796008888,2.758,3467.2,3465.6,0.75]
[1719796009181,2.758,3466.5,3465.4,2.9]
[1719796009381,2.758,3466.5,3465.5,0.75]
[1719796009590,2.758,3466.5,3465.6,0.365]
[1719796009739,5.64275,3466.5,3465.6,0.365]
[1719796009937,2.758,3465.9,3465.4,2.9]
[1719796010695,2.88459,3466.7,3465.4,2.9]
[1719796010872,2.758,3466.2,3465.4,2.9]
[1719796011039,2.758,3466.2,3465.5,0.29]
[1719796011243,3.0,3466.1,3465.5,0.29]
[1719796011500,3.0,3466.1,3465.4,2.9]
[1719796011636,2.758,3465.5,3464.9,0.278]
[1719796011838,3.0,3466.1,3464.9,0.278]
[1719796011839,3.0,3465.4,3464.9,0.278]
[1719796012139,3.0,3466.1,3464.9,0.278]
[1719796012453,3.0,3466.1,3464.8,2.78]
[1719796012454,5.88477,3466.5,3465.0,0.3058]
[1719796012681,2.88492,3466.3,3465.0,0.3058]
[1719796012854,2.758,3465.6,3465.0,0.3058]
[1719796013046,5.6435,3465.6,3464.5,0.345]
[1719796013241,3.0,3465.5,3464.5,0.345]
[1719796013984,3.0,3465.5,3464.3,2.89]
[1719796013985,2.758,3464.9,3464.3,2.89]
[1719796014360,3.0,3464.8,3464.3,2.89]
[1719796014746,2.39705374,3464.8,3464.3,2.89]
[1719796015075,2.88532,3465.9,3464.3,2.89]
[1719796015076,2.88447,3466.9,3464.3,2.89]
[1719796015301,2.88499,3466.3,3464.4,0.4046159]
[1719796015781,0.288447,3466.8,3464.4,0.4046159]
[1719796015952,2.758,3465.2,3464.4,0.4046159]
[1719796017156,2.758,3466.4,3464.8,0.75]
[1719796017385,2.758,3466.4,3464.4,1.1546159]
[1719796017560,2.758,3465.7,3464.5,0.95446159]
[1719796017738,2.758,3465.7,3464.6,0.55]
[1719796018145,2.758,3466.4,3464.6,0.55]
[1719796018680,1.92856108,3466.3,3464.6,0.55]
[1719796018855,1.92856108,3466.3,3464.7,0.21090775]
[1719796019052,1.92856108,3466.3,3464.7,0.96090775]
[1719796019251,1.92856108,3466.3,3464.8,0.55]
[1719796020171,1.92856108,3466.3,3464.7,0.21090775]
[1719796020367,1.92856108,3466.3,3464.5,0.40446159]
[1719796020368,2.88507,3466.2,3464.5,0.40446159]
[1719796020687,2.758,3465.7,3464.4,0.4046159]
[1719796020900,2.758,3465.7,3464.0,0.75]
[1719796021226,2.758,3465.1,3463.8,0.75]
[1719796021362,2.758,3465.1,3463.7,2.3605]
[1719796021699,2.758,3465.7,3463.7,2.3605]
[1719796021855,2.758,3466.3,3464.2,0.75]
[1719796022056,2.88528,3465.9,3464.3,0.4906159]
[1719796022256,2.758,3465.6,3464.1,1.156159]
[1719796023112,2.758,3465.6,3464.1,1.906159]
[1719796023336,3.0,3465.5,3464.1,1.906159]
[1719796023537,3.0,3465.5,3464.1,1.156159]
[1719796024105,1.39250086,3465.5,3464.1,1.156159]
[1719796024309,2.758,3465.6,3464.1,1.156159]
[1719796024723,2.758,3465.6,3464.2,0.1906159]
[1719796025091,2.88559,3465.5,3464.2,0.1906159]
[1719796025288,2.758,3465.6,3464.2,0.1906159]
[1719796025587,2.758,3464.9,3464.2,0.1906159]
[1719796025907,2.8862,3464.8,3464.2,0.1906159]
[1719796026115,2.758,3464.9,3463.0,1.3727864]
[1719796026310,3.0,3464.8,3463.0,1.3727864]
[1719796026616,2.88633,3464.6,3463.1,0.03837196]
[1719796026824,3.0,3464.8,3463.9,1.156147]
[1719796026825,5.88619,3464.8,3463.9,1.156147]
[1719796027006,2.88627,3464.7,3463.1,1.12724584]
[1719796027203,5.88636,3464.6,3463.1,0.37724584]
[1719796027406,2.88636,3464.6,3463.2,0.41113322]
[1719796027636,3.0,3464.5,3463.2,0.41113322]
[1719796027843,5.88648,3464.5,3463.2,0.41113322]
[1719796028131,3.0,3464.5,3463.2,1.56738122]
[1719796028516,2.758,3464.9,3463.2,1.56738122]
[1719796028517,2.758,3464.2,3463.2,1.56738122]
[1719796028850,3.0,3464.1,3463.3,0.33180477]
[1719796029213,2.758,3463.5,3463.3,0.33180477]
[1719796029435,5.758,3463.4,3462.7,1.37342061]
[1719796029602,5.758,3463.4,3462.6,2.52998361]
[1719796029808,8.6454,3463.4,3462.6,1.156563]
[1719796030009,8.6454,3463.4,3462.7,0.25299836]
[1719796030270,2.88758,3463.1,3462.3,1.156662]
[1719796030481,8.64534,3463.4,3462.3,1.156662]
[1719796030606,2.88764,3463.1,3462.3,1.156662]
[1719796030805,2.88751,3463.2,3462.0,1.37342061]
[1719796031010,2.758,3462.6,3462.0,1.156739]
[1719796031308,2.758,3462.6,3462.1,0.25301596]
[1719796031751,2.758,3462.6,3462.0,1.156739]
[1719796031953,2.758,3462.6,3461.6,1.37555502]
[1719796032421,2.758,3462.6,3461.7,0.04737502]
[1719796032621,3.0,3462.5,3461.4,1.37555502]
[1719796032842,3.0,3462.5,3461.6,1.156844]
[1719796033022,5.88815,3462.5,3461.3,1.37555502]
[1719796033225,3.0,3462.5,3461.2,1.37555502]
[1719796033416,2.88826,3462.3,3461.4,0.04777109]
[1719796033611,5.77658,3462.3,3461.3,0.04790163]
[1719796033814,5.77658,3462.3,3460.8,0.75]
[1719796033815,3.0,3462.2,3461.5,0.04764184]
[1719796034065,3.0,3462.5,3461.6,1.37555502]
[1719796034264,3.0,3462.5,3461.7,1.43330216]
[1719796034566,2.758,3463.3,3461.8,0.11177664]
[1719796034567,2.88777,3462.9,3461.8,0.11177664]
[1719796034766,5.64606,3462.6,3461.8,0.26048582]
[1719796034920,5.88816,3462.5,3461.4,1.37562958]
[1719796035116,3.0,3462.5,3461.8,0.06301919]
[1719796035461,0.75,3463.6,3461.3,1.156962]
[1719796035462,2.758,3463.3,3461.3,1.156962]
[1719796035762,2.8875,3463.2,3461.8,1.37511723]
[1719796035959,2.8875,3463.2,3461.9,1.37511723]
[1719796036162,2.758,3462.6,3461.8,0.05400472]
[1719796036363,2.758,3462.6,3461.5,1.37511723]
[1719796036520,5.64601,3462.6,3461.8,0.05400545]
[1719796036863,2.758,3462.6,3461.6,0.31656061]
[1719796037165,2.758,3462.6,3461.3,1.156962]
[1719796037166,3.0,3462.5,3461.8,0.04737977]
[1719796037459,3.0,3462.5,3461.7,0.04750964]
[1719796037626,3.0,3462.5,3461.8,0.04737977]
[1719796038029,3.0,3462.5,3461.3,2.53268335]
[1719796038234,3.0,3462.5,3461.8,0.04737977]
[1719796038544,1.92752117,3462.5,3461.8,0.04737977]
[1719796038718,1.92752117,3462.5,3461.5,0.25014113]
[1719796038917,1.92752117,3462.5,3461.8,0.04737977]
[1719796039130,1.92752117,3462.5,3461.4,0.86231299]
[1719796039131,0.31879057,3462.5,3461.5,1.00014285]
[1719796039316,5.64549,3463.3,3461.8,0.04737977]
[1719796039530,5.64549,3463.3,3461.9,0.05774027]
[1719796039735,2.88767,3463.0,3461.8,0.04737977]
[1719796039969,2.758,3463.3,3461.6,0.43951392]
[1719796040119,2.758,3463.3,3461.8,0.05414831]
[1719796040319,2.88767,3463.0,3461.7,0.39705157]
[1719796040520,2.88793,3462.7,3461.8,0.05414831]
[1719796040721,2.88759,3463.1,3461.8,0.05414831]
[1719796041020,5.64546,3463.3,3461.8,0.05414831]
[1719796041021,2.88769,3463.0,3461.8,0.05414831]
[1719796041245,7.23384,3464.0,3461.9,0.19050513]
[1719796041246,2.8881,3462.5,3461.9,0.19050513]
[1719796041484,2.8881,3462.5,3461.8,0.05414831]
[1719796041485,3.0,3462.4,3461.8,0.05414831]
[1719796041755,2.88825,3462.3,3461.3,1.156962]
[1719796041964,2.758,3462.6,3461.8,0.04737977]
[1719796041965,3.0,3462.5,3461.8,0.04737977]
[1719796042132,3.0,3462.5,3461.9,0.05775191]
[1719796042332,3.0,3462.5,3461.8,0.04737977]
[1719796042582,2.758,3463.3,3461.9,1.06313788]
[1719796042876,2.758,3463.3,3462.0,2.67898388]
[1719796043015,2.758,3463.3,3462.0,0.16553753]
[1719796043218,2.758,3462.6,3462.0,0.16553753]
[1719796043440,5.646,3462.6,3461.5,0.59223742]
[1719796043664,2.758,3462.6,3461.6,2.51366522]
[1719796043858,2.88825,3462.3,3461.6,0.03812753]
[1719796044044,3.0,3462.5,3461.7,0.05775458]
[1719796044223,3.0,3462.5,3461.3,1.156962]
[1719796044224,3.0,3462.5,3461.3,1.74919942]
[1719796044418,5.88808,3462.5,3461.8,0.04211821]
[1719796044623,3.0,3462.5,3461.5,1.50826103]
[1719796044819,3.0,3462.5,3461.9,0.03780249]
[1719796045024,3.0,3462.5,3462.0,0.0577507]
[1719796045457,2.758,3462.6,3461.4,1.26942739]
[1719796045773,2.758,3462.6,3461.5,4.30545089]
[1719796045923,2.758,3463.3,3461.6,3.1059256]
[1719796046118,2.758,3463.3,3462.1,0.75]
[1719796046321,2.758,3463.3,3462.2,3.16502099]
[1719796046521,2.758,3463.3,3462.1,0.75]
[1719796046522,2.758,3463.3,3462.3,0.05773718]
[1719796046723,2.758,3463.3,3462.3,0.68715515]
[1719796047459,2.758,3463.3,3462.3,0.62941797]
[1719796047828,2.758,3463.3,3462.3,1.37941797]
[1719796048372,6.2248,3464.2,3462.3,1.37941797]
[1719796048373,2.758,3463.9,3462.5,0.75]
[1719796048559,2.758,3463.9,3462.6,0.40674789]
[1719796048746,2.758,3463.9,3462.7,0.55]
[1719796050067,2.758,3464.5,3463.3,0.75]
[1719796050574,2.758,3464.5,3463.4,0.0490154]
[1719796050720,2.758,3464.5,3463.3,0.75]
[1719796051120,2.758,3464.5,3463.4,0.0577176]
[1719796051323,0.0326386,3464.9,3463.7,0.75]
[1719796051517,0.0326386,3464.9,3463.9,0.75]
[1719796051764,0.0326386,3464.9,3463.7,0.75]
[1719796051921,0.0326386,3464.9,3463.8,0.55]
[1719796052131,0.0326386,3464.9,3463.4,0.59327481]
[1719796052335,2.758,3464.2,3463.5,0.86328074]
[1719796052538,2.758,3464.2,3463.1,0.75]
[1719796052740,2.8869,3464.0,3462.9,0.75]
[1719796052940,2.758,3464.2,3462.9,0.75]
[1719796053135,2.88682,3464.1,3462.9,0.75]
[1719796053444,2.758,3464.2,3462.9,0.75]
[1719796053752,2.758,3464.2,3462.6,4.8925]
[1719796053753,2.887,3463.8,3462.6,4.8925]
[1719796053952,2.758,3464.2,3462.7,1.29625]
[1719796053953,2.88717,3463.6,3462.7,1.29625]
[1719796054168,2.88741,3463.4,3462.3,0.62941797]
[1719796054369,2.88725,3463.5,3461.9,24.6825]
[1719796054577,3.0,3463.5,3461.9,4.8925]
[1719796055095,3.0,3463.5,3462.0,0.01483654]
[1719796055292,2.758,3463.6,3462.2,0.75]
[1719796055947,2.88725,3463.5,3462.2,0.75]
[1719796056149,2.758,3463.6,3462.2,0.75]
[1719796056390,2.88742,3463.3,3462.0,0.75]
[1719796056689,2.88742,3463.3,3462.1,0.56425]
[1719796056888,2.88736,3463.4,3462.1,0.56425]
[1719796057089,5.64518,3463.6,3462.1,0.56425]
[1719796057090,2.88765,3463.1,3462.1,0.56425]
[1719796057383,2.88752,3463.2,3462.1,0.56425]
[1719796057588,2.88742,3463.3,3462.2,0.620675]
[1719796057589,2.88759,3463.1,3462.2,0.620675]
[1719796057897,2.88757,3463.2,3462.2,0.620675]
[1719796058254,5.64523,3463.6,3462.3,0.05774132]
[1719796058447,2.88734,3463.4,3462.2,0.620675]
[1719796059186,5.88729,3463.5,3462.2,0.620675]
[1719796059491,2.88766,3463.1,3462.2,0.620675]
[1719796059717,3.0,3463.5,3462.2,0.620675]
[1719796059990,2.88742,3463.3,3462.2,0.620675]
[1719796060552,2.8875,3463.2,3462.2,0.620675]
[1719796061009,2.88755,3463.2,3462.2,0.620675]
[1719796061505,2.88767,3463.0,3462.2,0.620675]
[1719796062300,5.64567,3463.0,3462.2,0.620675]
[1719796063311,2.758,3463.0,3462.3,0.03548348]
[1719796063475,2.758,3463.0,3462.4,0.05774322]
[1719796063878,2.758,3463.0,3462.2,0.620675]
[1719796064112,2.88775,3462.9,3462.2,0.620675]
[1719796064417,2.758,3463.0,3462.2,0.620675]
[1719796064620,2.8881,3462.5,3461.5,0.54399103]
[1719796064974,2.88834,3462.2,3461.5,0.54399103]
[1719796065270,2.88817,3462.4,3461.5,0.54399103]
[1719796065271,2.88843,3462.1,3461.5,0.54399103]
[1719796065470,2.88845,3462.1,3460.8,0.75]
[1719796065724,2.758,3462.4,3460.7,4.8925]
[1719796065725,2.88831,3462.3,3461.1,1.156962]
[1719796065869,2.8884,3462.2,3461.1,1.156962]
[1719796066303,2.88844,3462.1,3461.1,1.156962]
[1719796066523,2.88852,3462.0,3461.1,1.156962]
[1719796066673,2.88852,3462.0,3460.7,4.8925]
[1719796066877,2.88852,3462.0,3460.8,0.56425]
[1719796067107,2.88788,3462.8,3460.8,0.56425]
[1719796067108,2.88889,3461.6,3460.8,0.56425]
[1719796067337,5.64667,3461.8,3460.8,0.56425]
[1719796068180,3.0,3461.7,3460.8,0.56425]
[1719796068403,3.0,3461.7,3460.9,0.7363834]
[1719796070289,2.88859,3461.9,3460.9,0.7363834]
[1719796070506,3.0,3461.8,3460.9,0.7363834]
[1719796070978,3.0,3462.0,3460.9,0.7363834]
[1719796071319,2.758,3462.5,3460.7,4.8925]
[1719796071320,2.88844,3462.1,3461.0,0.56288834]
[1719796071518,3.0,3462.0,3461.1,0.05776102]
[1719796071815,3.0,3462.4,3461.0,0.56288834]
[1719796072027,3.0,3462.4,3461.0,1.31288834]
[1719796072390,3.0,3462.4,3461.1,0.05775354]
[1719796072578,2.88775,3462.9,3461.2,0.55]
[1719796072920,2.88792,3462.7,3461.3,0.75]
[1719796073273,2.758,3463.1,3461.3,0.75]
[1719796073481,2.8877,3463.0,3461.4,0.55]
[1719796073722,2.88782,3462.9,3461.4,0.55]
[1719796073929,3.0,3462.8,3461.4,0.55]
[1719796074099,5.88775,3462.9,3461.4,0.55]
[1719796074782,2.88797,3462.7,3461.2,0.75]
[1719796074995,3.0,3462.6,3461.4,0.75]
[1719796075172,5.88781,3462.9,3461.5,0.05775025]
[1719796075822,3.0,3462.9,3461.3,0.18628883]
[1719796076029,3.0,3463.0,3461.6,0.75]
[1719796076188,3.0,3463.0,3461.8,0.75]
[1719796076380,3.0,3463.0,3461.6,0.75]
[1719796076582,2.758,3463.1,3461.8,4.8925]
[1719796076831,2.758,3463.1,3461.9,0.55276704]
[1719796077322,5.64559,3463.1,3461.9,0.49502435]
[1719796078506,3.0,3463.0,3461.9,0.49502435]